[Event "Early-Titled-Tuesday-Blitz-April-23-2024"]
[Site "Chess.com"]
[Date "2024.04.23"]
[Round "5"]
[White "Barath1308"]
[Black "GalaxyRoman"]
[Result "1/2-1/2"]
[WhiteElo "2534"]
[BlackElo "2777"]
[TimeControl "180+1"]
[EndTime "8:59:08 PDT"]
[Termination "Game drawn by repetition"]

1. Nf3 {[%clk 0:03:00]} 1... Nf6 {[%clk 0:02:49.3]} 2. d4 {[%clk 0:03:00.1]}
2... g6 {[%clk 0:02:49.1]} 3. g3 {[%clk 0:02:58.4]} 3... Bg7 {[%clk 0:02:49.4]}
4. Bg2 {[%clk 0:02:59.3]} 4... O-O {[%clk 0:02:50]} 5. O-O {[%clk 0:02:59.9]}
5... d5 {[%clk 0:02:50.7]} 6. c4 {[%clk 0:02:58.4]} 6... dxc4 {[%clk 0:02:51.6]}
7. Nc3 {[%clk 0:02:53.7]} 7... Nc6 {[%clk 0:02:45.3]} 8. e3 {[%clk 0:02:50.7]}
8... Bf5 {[%clk 0:02:35.8]} 9. Re1 {[%clk 0:02:36.9]} 9... Bd3 {[%clk 0:02:34]}
10. b3 {[%clk 0:02:28]} 10... e5 {[%clk 0:02:28.7]} 11. Bb2 {[%clk 0:02:23.9]}
11... exd4 {[%clk 0:01:45.2]} 12. exd4 {[%clk 0:02:21.8]} 12... Nxd4 {[%clk
0:01:20.5]} 13. Nxd4 {[%clk 0:02:19.8]} 13... Qxd4 {[%clk 0:01:21.4]} 14. Bxb7
{[%clk 0:02:19.8]} 14... Rad8 {[%clk 0:01:20.7]} 15. Na4 {[%clk 0:02:14.8]}
15... Qd6 {[%clk 0:01:14.9]} 16. Bg2 {[%clk 0:02:12.1]} 16... h5 {[%clk
0:00:59.9]} 17. Be5 {[%clk 0:02:01]} 17... Qd7 {[%clk 0:00:53.3]} 18. Nc5 {[%clk
0:01:56.7]} 18... Qb5 {[%clk 0:00:52.4]} 19. Nxd3 {[%clk 0:01:54.9]} 19... cxd3
{[%clk 0:00:53.3]} 20. Bxc7 {[%clk 0:01:54.8]} 20... Rd7 {[%clk 0:00:52.7]} 21.
Be5 {[%clk 0:01:53]} 21... Re8 {[%clk 0:00:45.5]} 22. Bc3 {[%clk 0:01:29]} 22...
Rxe1+ {[%clk 0:00:44.6]} 23. Qxe1 {[%clk 0:01:29.6]} 23... Qb6 {[%clk
0:00:25.9]} 24. Rd1 {[%clk 0:01:27.1]} 24... Rd8 {[%clk 0:00:15.6]} 25. Bf1
{[%clk 0:01:24.8]} 25... Re8 {[%clk 0:00:10.1]} 26. Qd2 {[%clk 0:01:25]} 26...
Ne4 {[%clk 0:00:09.9]} 27. Ba5 {[%clk 0:01:08.1]} 27... Qc5 {[%clk 0:00:05.7]}
28. b4 {[%clk 0:00:59.7]} 28... Qf5 {[%clk 0:00:03.1]} 29. Qf4 {[%clk
0:00:55.1]} 29... Qxf4 {[%clk 0:00:02.1]} 30. gxf4 {[%clk 0:00:55.6]} 30... d2
{[%clk 0:00:03]} 31. f3 {[%clk 0:00:50.4]} 31... Nd6 {[%clk 0:00:02.6]} 32. Rxd2
{[%clk 0:00:49.3]} 32... Nf5 {[%clk 0:00:03.5]} 33. Rd8 {[%clk 0:00:47.4]} 33...
Rxd8 {[%clk 0:00:02.9]} 34. Bxd8 {[%clk 0:00:48.3]} 34... Bd4+ {[%clk
0:00:03.4]} 35. Kh1 {[%clk 0:00:47]} 35... Kf8 {[%clk 0:00:03.1]} 36. Bd3 {[%clk
0:00:46.5]} 36... Nd6 {[%clk 0:00:02.6]} 37. a4 {[%clk 0:00:40.3]} 37... Ke8
{[%clk 0:00:02.6]} 38. Bc7 {[%clk 0:00:40.4]} 38... Kd7 {[%clk 0:00:03]} 39.
Bxd6 {[%clk 0:00:32.4]} 39... Kxd6 {[%clk 0:00:03.9]} 40. Kg2 {[%clk 0:00:32.2]}
40... Bc3 {[%clk 0:00:02.8]} 41. b5 {[%clk 0:00:30.6]} 41... Bd2 {[%clk
0:00:03.3]} 42. Kg3 {[%clk 0:00:29.9]} 42... Ke6 {[%clk 0:00:02.3]} 43. Bc4+
{[%clk 0:00:29.8]} 43... Kf6 {[%clk 0:00:02.6]} 44. Bd5 {[%clk 0:00:27.5]} 44...
Ba5 {[%clk 0:00:03]} 45. Bc4 {[%clk 0:00:27.6]} 45... Bc7 {[%clk 0:00:03.4]} 46.
h4 {[%clk 0:00:26]} 46... Kg7 {[%clk 0:00:03.4]} 47. Bd5 {[%clk 0:00:23.9]}
47... f6 {[%clk 0:00:03.5]} 48. Be6 {[%clk 0:00:20.6]} 48... g5 {[%clk
0:00:02.9]} 49. hxg5 {[%clk 0:00:20.7]} 49... fxg5 {[%clk 0:00:03.8]} 50. Kh3
{[%clk 0:00:20.8]} 50... Bxf4 {[%clk 0:00:03.7]} 51. a5 {[%clk 0:00:21.1]} 51...
Bc7 {[%clk 0:00:04]} 52. a6 {[%clk 0:00:16.5]} 52... Kf6 {[%clk 0:00:03.6]} 53.
Bd5 {[%clk 0:00:16.8]} 53... Kf5 {[%clk 0:00:03.6]} 54. Bc6 {[%clk 0:00:16.7]}
54... Kf4 {[%clk 0:00:04]} 55. Kg2 {[%clk 0:00:15.7]} 55... Bb6 {[%clk
0:00:04.5]} 56. Kh3 {[%clk 0:00:16]} 56... Bc5 {[%clk 0:00:03.5]} 57. Kg2 {[%clk
0:00:16.2]} 57... Bb6 {[%clk 0:00:04]} 58. Kh3 {[%clk 0:00:16.6]} 58... Bd8
{[%clk 0:00:03.3]} 59. Kg2 {[%clk 0:00:16.6]} 59... g4 {[%clk 0:00:03.7]} 60.
fxg4 {[%clk 0:00:16.8]} 60... hxg4 {[%clk 0:00:04.6]} 61. Be8 {[%clk 0:00:17]}
61... Bb6 {[%clk 0:00:05.5]} 62. Bc6 {[%clk 0:00:17.4]} 62... g3 {[%clk
0:00:05.8]} 63. Be8 {[%clk 0:00:17.9]} 63... Bf2 {[%clk 0:00:06.7]} 64. Bc6
{[%clk 0:00:18.4]} 64... Ke5 {[%clk 0:00:07.4]} 65. Be8 {[%clk 0:00:18.8]} 65...
Kd6 {[%clk 0:00:08.1]} 66. Bg6 {[%clk 0:00:18.8]} 66... Kc5 {[%clk 0:00:08.1]}
67. Bd3 {[%clk 0:00:19.2]} 67... Kd4 {[%clk 0:00:08.7]} 68. Be2 {[%clk
0:00:19.1]} 68... Kc3 {[%clk 0:00:08.8]} 69. Bf3 {[%clk 0:00:19.2]} 69... Kb4
{[%clk 0:00:08.4]} 70. Bc6 {[%clk 0:00:19.8]} 70... Kc5 {[%clk 0:00:08.8]} 71.
Be8 {[%clk 0:00:19.9]} 71... Kb6 {[%clk 0:00:09]} 72. Bc6 {[%clk 0:00:20.2]}
72... Kc7 {[%clk 0:00:09.5]} 73. Be8 {[%clk 0:00:20.6]} 73... Kd6 {[%clk
0:00:09.5]} 74. Bc6 {[%clk 0:00:20.8]} 74... Ke7 {[%clk 0:00:10.1]} 75. Bb7
{[%clk 0:00:20.5]} 75... Kd7 {[%clk 0:00:09.4]} 76. Bc6+ {[%clk 0:00:20.7]}
76... Kc7 {[%clk 0:00:09.9]} 77. Be8 {[%clk 0:00:21]} 77... Kb6 {[%clk
0:00:10.3]} 78. Bc6 {[%clk 0:00:21.6]} 78... Be1 {[%clk 0:00:09.8]} 79. Be8
{[%clk 0:00:22]} 79... Bf2 {[%clk 0:00:10.4]} 1/2-1/2

[Event "Early-Titled-Tuesday-Blitz-April-23-2024"]
[Site "Chess.com"]
[Date "2024.04.23"]
[Round "5"]
[White "Seochesspie"]
[Black "NikitaShnadrygin"]
[Result "0-1"]
[WhiteElo "2892"]
[BlackElo "2699"]
[TimeControl "180+1"]
[EndTime "8:59:09 PDT"]
[Termination "NikitaShnadrygin won on time"]

1. c4 {[%clk 0:03:00.9]} 1... Nf6 {[%clk 0:02:59.7]} 2. Nc3 {[%clk 0:03:00.8]}
2... d5 {[%clk 0:02:59.7]} 3. cxd5 {[%clk 0:03:00.6]} 3... Nxd5 {[%clk
0:03:00.6]} 4. e4 {[%clk 0:03:00.5]} 4... Nxc3 {[%clk 0:03:00.9]} 5. bxc3 {[%clk
0:02:58]} 5... c5 {[%clk 0:02:56.8]} 6. d4 {[%clk 0:02:56.2]} 6... g6 {[%clk
0:02:51]} 7. Bc4 {[%clk 0:02:50.9]} 7... Bg7 {[%clk 0:02:42.8]} 8. Ne2 {[%clk
0:02:50.7]} 8... cxd4 {[%clk 0:02:36.9]} 9. cxd4 {[%clk 0:02:50.4]} 9... Nc6
{[%clk 0:02:36.7]} 10. Be3 {[%clk 0:02:44.3]} 10... Qa5+ {[%clk 0:02:30.7]} 11.
Bd2 {[%clk 0:02:21.7]} 11... Qd8 {[%clk 0:01:44.7]} 12. d5 {[%clk 0:02:15.1]}
12... Ne5 {[%clk 0:01:44.5]} 13. Bb5+ {[%clk 0:02:15.2]} 13... Bd7 {[%clk
0:01:44.8]} 14. Bxd7+ {[%clk 0:02:15]} 14... Qxd7 {[%clk 0:01:44.9]} 15. O-O
{[%clk 0:02:15.6]} 15... O-O {[%clk 0:01:41.1]} 16. Bc3 {[%clk 0:02:08.4]} 16...
Rfc8 {[%clk 0:00:57.1]} 17. Qb3 {[%clk 0:02:04]} 17... Rc7 {[%clk 0:00:37.9]}
18. f4 {[%clk 0:01:47.8]} 18... Nc4 {[%clk 0:00:36.9]} 19. Bxg7 {[%clk 0:01:46]}
19... Kxg7 {[%clk 0:00:37.8]} 20. Rad1 {[%clk 0:01:37.8]} 20... Qd6 {[%clk
0:00:35.8]} 21. Kh1 {[%clk 0:01:35.7]} 21... Qb6 {[%clk 0:00:30.4]} 22. Rc1
{[%clk 0:01:20.8]} 22... Rac8 {[%clk 0:00:25.6]} 23. Qd3 {[%clk 0:00:45.5]}
23... Nb2 {[%clk 0:00:19.1]} 24. Qd2 {[%clk 0:00:42.1]} 24... Nc4 {[%clk
0:00:19]} 25. Qd3 {[%clk 0:00:36.4]} 25... Qe3 {[%clk 0:00:19]} 26. Rcd1 {[%clk
0:00:22.1]} 26... Qxd3 {[%clk 0:00:17.4]} 27. Rxd3 {[%clk 0:00:23]} 27... Nd6
{[%clk 0:00:17.9]} 28. e5 {[%clk 0:00:22.9]} 28... Ne4 {[%clk 0:00:18.5]} 29.
Ng3 {[%clk 0:00:20.6]} 29... Rc1 {[%clk 0:00:13.1]} 30. Kg1 {[%clk 0:00:19.2]}
30... Rxf1+ {[%clk 0:00:12.2]} 31. Kxf1 {[%clk 0:00:20.1]} 31... Nc5 {[%clk
0:00:07.3]} 32. Rc3 {[%clk 0:00:18]} 32... f5 {[%clk 0:00:06.4]} 33. Ke2 {[%clk
0:00:16.9]} 33... b6 {[%clk 0:00:06.9]} 34. Ke3 {[%clk 0:00:11.9]} 34... Rd8
{[%clk 0:00:07.3]} 35. Kd4 {[%clk 0:00:12.3]} 35... Ne6+ {[%clk 0:00:07.8]} 36.
Ke3 {[%clk 0:00:10.9]} 36... Rxd5 {[%clk 0:00:07.8]} 37. Ne2 {[%clk 0:00:09.6]}
37... Rc5 {[%clk 0:00:08.3]} 38. Rd3 {[%clk 0:00:09.5]} 38... Kf7 {[%clk
0:00:08.1]} 39. h3 {[%clk 0:00:07.8]} 39... Ra5 {[%clk 0:00:08.5]} 40. a3 {[%clk
0:00:07.4]} 40... Nc5 {[%clk 0:00:08.9]} 41. Rc3 {[%clk 0:00:07.8]} 41... Ne4
{[%clk 0:00:09.5]} 42. Rd3 {[%clk 0:00:07.7]} 42... Nc5 {[%clk 0:00:10.1]} 43.
Rc3 {[%clk 0:00:07.1]} 43... Ne6 {[%clk 0:00:11]} 44. g4 {[%clk 0:00:07]} 44...
Ra4 {[%clk 0:00:09.9]} 45. Kf3 {[%clk 0:00:06.1]} 45... Nd4+ {[%clk 0:00:09.5]}
46. Nxd4 {[%clk 0:00:06.4]} 46... Rxd4 {[%clk 0:00:10.4]} 47. Ke3 {[%clk
0:00:06.8]} 47... Ra4 {[%clk 0:00:10.4]} 48. gxf5 {[%clk 0:00:05.1]} 48... gxf5
{[%clk 0:00:10.7]} 49. h4 {[%clk 0:00:05.5]} 49... Kg6 {[%clk 0:00:10.6]} 50.
Kf3 {[%clk 0:00:05.1]} 50... e6 {[%clk 0:00:08.2]} 51. Rc6 {[%clk 0:00:02.5]}
51... Rxa3+ {[%clk 0:00:08.3]} 52. Kg2 {[%clk 0:00:03.1]} 52... Kf7 {[%clk
0:00:06.6]} 53. Rc7+ {[%clk 0:00:03.3]} 53... Kg6 {[%clk 0:00:07.4]} 54. Re7
{[%clk 0:00:03.5]} 54... Kh5 {[%clk 0:00:08]} 55. Rxe6 {[%clk 0:00:03.9]} 55...
Kxh4 {[%clk 0:00:08.3]} 56. Re7 {[%clk 0:00:03.4]} 56... Kg4 {[%clk 0:00:08]}
57. Rxh7 {[%clk 0:00:03.6]} 57... Kxf4 {[%clk 0:00:08.3]} 58. e6 {[%clk
0:00:04.1]} 58... a5 {[%clk 0:00:09]} 59. Rb7 {[%clk 0:00:03.7]} 59... Rb3
{[%clk 0:00:05.4]} 60. e7 {[%clk 0:00:03.3]} 60... Re3 {[%clk 0:00:06.1]} 61.
Kf2 {[%clk 0:00:02.1]} 61... a4 {[%clk 0:00:06]} 62. Rxb6 {[%clk 0:00:02]} 62...
Rxe7 {[%clk 0:00:06.6]} 63. Ra6 {[%clk 0:00:02.5]} 63... Re4 {[%clk 0:00:07.5]}
64. Ra5 {[%clk 0:00:02.1]} 64... Rb4 {[%clk 0:00:07.9]} 65. Ke2 {[%clk 0:00:02]}
65... Ke4 {[%clk 0:00:08.5]} 66. Kf2 {[%clk 0:00:02.4]} 66... f4 {[%clk
0:00:09.1]} 67. Ra8 {[%clk 0:00:03.3]} 67... Kd3 {[%clk 0:00:08.7]} 68. Kf3
{[%clk 0:00:03]} 68... Kc3 {[%clk 0:00:09.2]} 69. Ra7 {[%clk 0:00:01.6]} 69...
Kb2 {[%clk 0:00:09.5]} 0-1

[Event "Early-Titled-Tuesday-Blitz-April-23-2024"]
[Site "Chess.com"]
[Date "2024.04.23"]
[Round "5"]
[White "The_Sherman_Variation"]
[Black "Zhigalko_Sergei"]
[Result "1/2-1/2"]
[WhiteElo "2735"]
[BlackElo "2930"]
[TimeControl "180+1"]
[EndTime "8:59:17 PDT"]
[Termination "Game drawn by repetition"]

1. e4 {[%clk 0:03:00.9]} 1... c5 {[%clk 0:02:59.6]} 2. c3 {[%clk 0:02:59.9]}
2... Nf6 {[%clk 0:02:59.6]} 3. e5 {[%clk 0:03:00.1]} 3... Nd5 {[%clk 0:03:00]}
4. Nf3 {[%clk 0:03:01]} 4... Nc6 {[%clk 0:03:00.1]} 5. Bc4 {[%clk 0:03:01.7]}
5... Nb6 {[%clk 0:02:59.8]} 6. Bb3 {[%clk 0:03:02.4]} 6... g6 {[%clk 0:03:00.1]}
7. d4 {[%clk 0:03:01]} 7... cxd4 {[%clk 0:03:01]} 8. cxd4 {[%clk 0:03:01.6]}
8... Bg7 {[%clk 0:03:01.3]} 9. O-O {[%clk 0:03:01.7]} 9... O-O {[%clk
0:03:01.7]} 10. Nc3 {[%clk 0:02:58.1]} 10... d5 {[%clk 0:03:01.5]} 11. Be3
{[%clk 0:02:55.6]} 11... Bg4 {[%clk 0:03:00.8]} 12. h3 {[%clk 0:02:54.8]} 12...
Bxf3 {[%clk 0:03:01.2]} 13. Qxf3 {[%clk 0:02:55.7]} 13... e6 {[%clk 0:03:02]}
14. Nb5 {[%clk 0:02:44.7]} 14... a6 {[%clk 0:02:23.5]} 15. Nd6 {[%clk 0:02:42]}
15... f6 {[%clk 0:02:20.3]} 16. Qg4 {[%clk 0:02:20.5]} 16... Qe7 {[%clk
0:02:18.7]} 17. f4 {[%clk 0:02:08.9]} 17... Nc8 {[%clk 0:02:14]} 18. Nxc8 {[%clk
0:01:58]} 18... Raxc8 {[%clk 0:02:14.9]} 19. Rae1 {[%clk 0:01:44.7]} 19... f5
{[%clk 0:01:52.7]} 20. Qe2 {[%clk 0:01:42.9]} 20... Na5 {[%clk 0:01:53]} 21. Bc2
{[%clk 0:01:37.9]} 21... Qb4 {[%clk 0:01:34.5]} 22. Bd3 {[%clk 0:01:37.6]} 22...
Nc4 {[%clk 0:01:34.2]} 23. Bxc4 {[%clk 0:01:32.5]} 23... Rxc4 {[%clk 0:01:30.4]}
24. b3 {[%clk 0:01:27.7]} 24... Rc6 {[%clk 0:01:28.5]} 25. Rc1 {[%clk
0:01:27.6]} 25... Rfc8 {[%clk 0:01:28.4]} 26. Qd3 {[%clk 0:01:11]} 26... Bf8
{[%clk 0:00:46.9]} 27. Rxc6 {[%clk 0:00:57.5]} 27... Rxc6 {[%clk 0:00:47.8]} 28.
Rc1 {[%clk 0:00:57.1]} 28... Rxc1+ {[%clk 0:00:43.7]} 29. Bxc1 {[%clk 0:00:58]}
29... Qe1+ {[%clk 0:00:43.8]} 30. Qf1 {[%clk 0:00:58.6]} 30... Qc3 {[%clk
0:00:40.3]} 31. Qd1 {[%clk 0:00:56.9]} 31... Bb4 {[%clk 0:00:34]} 32. Kh2 {[%clk
0:00:52.8]} 32... Ba5 {[%clk 0:00:33.1]} 33. Ba3 {[%clk 0:00:51.4]} 33... Bb6
{[%clk 0:00:32.9]} 34. Bc5 {[%clk 0:00:42.2]} 34... Bxc5 {[%clk 0:00:32.9]} 35.
dxc5 {[%clk 0:00:43.1]} 35... Qxc5 {[%clk 0:00:33.1]} 36. Qd3 {[%clk 0:00:40.2]}
36... Kf7 {[%clk 0:00:19.4]} 37. Qg3 {[%clk 0:00:38.2]} 37... Qe7 {[%clk
0:00:09.2]} 38. Qc3 {[%clk 0:00:37]} 38... Qd7 {[%clk 0:00:09.3]} 39. Qd4 {[%clk
0:00:34.6]} 39... h6 {[%clk 0:00:09.8]} 40. h4 {[%clk 0:00:33.2]} 40... Qe7
{[%clk 0:00:09.3]} 41. Kh3 {[%clk 0:00:30.2]} 41... Qc7 {[%clk 0:00:09.2]} 42.
Kh2 {[%clk 0:00:22.4]} 42... Qd7 {[%clk 0:00:08.9]} 43. Kh3 {[%clk 0:00:20.2]}
43... Ke8 {[%clk 0:00:09.3]} 44. Kh2 {[%clk 0:00:19.5]} 44... Qe7 {[%clk
0:00:09.7]} 45. Kh3 {[%clk 0:00:18.8]} 45... Qd7 {[%clk 0:00:09.2]} 46. Kh2
{[%clk 0:00:16.8]} 46... Kd8 {[%clk 0:00:09.7]} 47. Qb6+ {[%clk 0:00:16.3]}
47... Kc8 {[%clk 0:00:10.1]} 48. Qc5+ {[%clk 0:00:15.2]} 48... Kb8 {[%clk
0:00:09.6]} 49. Qf8+ {[%clk 0:00:14.8]} 49... Ka7 {[%clk 0:00:07.8]} 50. Qc5+
{[%clk 0:00:14.4]} 50... b6 {[%clk 0:00:07.7]} 51. Qd4 {[%clk 0:00:14.6]} 51...
Kb7 {[%clk 0:00:08]} 52. Kh3 {[%clk 0:00:12.3]} 52... Qe7 {[%clk 0:00:07.2]} 53.
b4 {[%clk 0:00:11.8]} 53... Qd7 {[%clk 0:00:07]} 54. Kh2 {[%clk 0:00:11.5]}
54... Qc6 {[%clk 0:00:06.1]} 55. Qd1 {[%clk 0:00:12]} 55... Qc4 {[%clk
0:00:05.8]} 56. Qf3 {[%clk 0:00:12.3]} 56... Qxb4 {[%clk 0:00:05.6]} 57. Qg3
{[%clk 0:00:12.3]} 57... a5 {[%clk 0:00:05]} 58. Kh3 {[%clk 0:00:12.4]} 58... a4
{[%clk 0:00:04.4]} 59. Qxg6 {[%clk 0:00:12.7]} 59... Qxf4 {[%clk 0:00:04.4]} 60.
Qxe6 {[%clk 0:00:13.4]} 60... Qg4+ {[%clk 0:00:04.8]} 61. Kh2 {[%clk 0:00:14]}
61... Qxh4+ {[%clk 0:00:05.7]} 62. Kg1 {[%clk 0:00:14.7]} 62... Qe1+ {[%clk
0:00:06.3]} 63. Kh2 {[%clk 0:00:15.4]} 63... Qh4+ {[%clk 0:00:06.7]} 64. Kg1
{[%clk 0:00:15.9]} 64... Qd4+ {[%clk 0:00:06.2]} 65. Kh2 {[%clk 0:00:14.5]}
65... Ka6 {[%clk 0:00:06]} 66. Qc8+ {[%clk 0:00:13]} 66... Kb5 {[%clk
0:00:06.3]} 67. Qd7+ {[%clk 0:00:13.1]} 67... Kb4 {[%clk 0:00:05.3]} 68. e6
{[%clk 0:00:13.7]} 68... Qh4+ {[%clk 0:00:05]} 69. Kg1 {[%clk 0:00:14.4]} 69...
Qe1+ {[%clk 0:00:05.4]} 70. Kh2 {[%clk 0:00:15.1]} 70... Qh4+ {[%clk 0:00:05.7]}
71. Kg1 {[%clk 0:00:15.7]} 71... Qd4+ {[%clk 0:00:06.6]} 72. Kh2 {[%clk
0:00:15.9]} 72... Qe5+ {[%clk 0:00:04.6]} 73. Kg1 {[%clk 0:00:15.9]} 73... Qe3+
{[%clk 0:00:04.6]} 74. Kh2 {[%clk 0:00:16]} 74... Qf4+ {[%clk 0:00:04.6]} 75.
Kg1 {[%clk 0:00:16.1]} 75... Qe3+ {[%clk 0:00:04.7]} 76. Kh2 {[%clk 0:00:16.6]}
76... d4 {[%clk 0:00:04.3]} 77. e7 {[%clk 0:00:13.4]} 77... Qf4+ {[%clk
0:00:03.6]} 78. Kg1 {[%clk 0:00:13.8]} 78... Qe3+ {[%clk 0:00:03.9]} 79. Kh2
{[%clk 0:00:14]} 79... Qf4+ {[%clk 0:00:04.2]} 80. Kg1 {[%clk 0:00:14.6]} 80...
Qe3+ {[%clk 0:00:04.5]} 81. Kh2 {[%clk 0:00:15]} 1/2-1/2

[Event "Early-Titled-Tuesday-Blitz-April-23-2024"]
[Site "Chess.com"]
[Date "2024.04.23"]
[Round "5"]
[White "ozates"]
[Black "Rsnr"]
[Result "0-1"]
[WhiteElo "2545"]
[BlackElo "2882"]
[TimeControl "180+1"]
[EndTime "8:59:17 PDT"]
[Termination "Rsnr won by resignation"]

1. e4 {[%clk 0:03:00.9]} 1... e5 {[%clk 0:03:00]} 2. Nf3 {[%clk 0:02:57.9]} 2...
Nc6 {[%clk 0:03:00.4]} 3. Bc4 {[%clk 0:02:56.9]} 3... Bc5 {[%clk 0:03:00.2]} 4.
c3 {[%clk 0:02:56.2]} 4... Nf6 {[%clk 0:03:00.4]} 5. d3 {[%clk 0:02:55.2]} 5...
h6 {[%clk 0:02:55.3]} 6. Nbd2 {[%clk 0:02:54.1]} 6... d6 {[%clk 0:02:54.3]} 7.
O-O {[%clk 0:02:52.9]} 7... a5 {[%clk 0:02:51.7]} 8. Re1 {[%clk 0:02:50.4]} 8...
O-O {[%clk 0:02:51.6]} 9. h3 {[%clk 0:02:48.5]} 9... Be6 {[%clk 0:02:48.3]} 10.
Bb5 {[%clk 0:02:48.6]} 10... Ne7 {[%clk 0:02:18.2]} 11. Nf1 {[%clk 0:02:32]}
11... Bb6 {[%clk 0:02:15.9]} 12. d4 {[%clk 0:02:30]} 12... c6 {[%clk 0:02:12.5]}
13. Bd3 {[%clk 0:02:27]} 13... Ng6 {[%clk 0:02:04.7]} 14. Ng3 {[%clk 0:02:21.1]}
14... Qc7 {[%clk 0:01:52.6]} 15. Bc2 {[%clk 0:02:17.3]} 15... Rad8 {[%clk
0:01:49.9]} 16. Be3 {[%clk 0:02:12.9]} 16... Rfe8 {[%clk 0:01:16.3]} 17. Qd2
{[%clk 0:02:02.4]} 17... Kh7 {[%clk 0:00:48.6]} 18. Rad1 {[%clk 0:01:56.1]}
18... Bxa2 {[%clk 0:00:34.5]} 19. b3 {[%clk 0:01:52.6]} 19... a4 {[%clk
0:00:34.9]} 20. bxa4 {[%clk 0:01:51]} 20... Ba5 {[%clk 0:00:35.2]} 21. Nf5
{[%clk 0:01:42.3]} 21... Ng8 {[%clk 0:00:33.9]} 22. Nh2 {[%clk 0:01:27.2]} 22...
Be6 {[%clk 0:00:33.5]} 23. Ng4 {[%clk 0:01:25.7]} 23... exd4 {[%clk 0:00:31.8]}
24. Bxd4 {[%clk 0:01:24.1]} 24... Ne5 {[%clk 0:00:27.3]} 25. Qf4 {[%clk
0:01:12.9]} 25... f6 {[%clk 0:00:24.3]} 26. Qg3 {[%clk 0:00:57.1]} 26... Bxf5
{[%clk 0:00:15.8]} 27. exf5 {[%clk 0:00:56.8]} 27... Qf7 {[%clk 0:00:16.5]} 28.
f4 {[%clk 0:00:50.2]} 28... Nc4 {[%clk 0:00:16.3]} 29. Re6 {[%clk 0:00:46]}
29... d5 {[%clk 0:00:13.5]} 30. Rde1 {[%clk 0:00:36]} 30... Kh8 {[%clk
0:00:13.7]} 31. Qh4 {[%clk 0:00:29.3]} 31... Rf8 {[%clk 0:00:12.4]} 32. Nf2
{[%clk 0:00:13.2]} 32... Bc7 {[%clk 0:00:11.5]} 33. Nd3 {[%clk 0:00:12.5]} 33...
Rfe8 {[%clk 0:00:08.9]} 34. g4 {[%clk 0:00:13]} 34... Nd6 {[%clk 0:00:08.3]} 35.
Nc5 {[%clk 0:00:11.7]} 35... b6 {[%clk 0:00:08.7]} 36. Rxe8 {[%clk 0:00:12.1]}
36... Rxe8 {[%clk 0:00:08.8]} 37. Ne6 {[%clk 0:00:13]} 37... c5 {[%clk
0:00:04.2]} 38. Be3 {[%clk 0:00:12.4]} 38... Nc4 {[%clk 0:00:04.4]} 39. g5
{[%clk 0:00:12.2]} 39... Nxe3 {[%clk 0:00:03]} 40. Rxe3 {[%clk 0:00:13.1]} 40...
fxg5 {[%clk 0:00:02.7]} 41. fxg5 {[%clk 0:00:13.1]} 41... d4 {[%clk 0:00:03.2]}
42. Rf3 {[%clk 0:00:08.9]} 42... Be5 {[%clk 0:00:03.1]} 43. gxh6 {[%clk
0:00:06.9]} 43... Nxh6 {[%clk 0:00:03]} 44. cxd4 {[%clk 0:00:07.5]} 44... cxd4
{[%clk 0:00:03.2]} 45. Bd3 {[%clk 0:00:06.2]} 45... Qf6 {[%clk 0:00:03.3]} 46.
Ng5 {[%clk 0:00:06.3]} 46... Rc8 {[%clk 0:00:02.4]} 47. Qh5 {[%clk 0:00:06.4]}
47... Rc7 {[%clk 0:00:02.2]} 48. Ne4 {[%clk 0:00:06.2]} 48... Qf7 {[%clk
0:00:02.3]} 49. Qh4 {[%clk 0:00:05.4]} 49... Bf6 {[%clk 0:00:02.8]} 50. Qg3
{[%clk 0:00:05.3]} 50... Re7 {[%clk 0:00:02.9]} 51. Nd6 {[%clk 0:00:05.1]} 51...
Qf8 {[%clk 0:00:03.3]} 52. Ne4 {[%clk 0:00:05]} 52... Be5 {[%clk 0:00:03.8]} 53.
Qh4 {[%clk 0:00:04.8]} 53... Bf6 {[%clk 0:00:04.6]} 54. Ng5 {[%clk 0:00:04.7]}
54... Bxg5 {[%clk 0:00:04.8]} 55. Qxg5 {[%clk 0:00:05.1]} 55... Qf6 {[%clk
0:00:05.7]} 56. Qg3 {[%clk 0:00:05.4]} 56... Qe5 {[%clk 0:00:06.2]} 57. Qf2
{[%clk 0:00:05.2]} 57... Ng8 {[%clk 0:00:06.6]} 58. Rf4 {[%clk 0:00:05]} 58...
Nf6 {[%clk 0:00:07.2]} 59. Rh4+ {[%clk 0:00:05.2]} 59... Kg8 {[%clk 0:00:08]}
60. Rf4 {[%clk 0:00:05.1]} 60... Nd5 {[%clk 0:00:07.9]} 61. Re4 {[%clk
0:00:04.9]} 61... Qf6 {[%clk 0:00:07.9]} 62. Rxe7 {[%clk 0:00:04.4]} 62... Qxe7
{[%clk 0:00:08.8]} 63. Qxd4 {[%clk 0:00:04.6]} 63... Qg5+ {[%clk 0:00:06]} 64.
Kf2 {[%clk 0:00:04]} 64... Nf4 {[%clk 0:00:06.5]} 65. Bc4+ {[%clk 0:00:03.5]}
65... Kh7 {[%clk 0:00:07]} 66. Qe4 {[%clk 0:00:03.4]} 66... Nxh3+ {[%clk
0:00:07]} 67. Ke2 {[%clk 0:00:04]} 67... Nf4+ {[%clk 0:00:07.2]} 68. Kf3 {[%clk
0:00:04]} 68... Nh5 {[%clk 0:00:04.2]} 69. f6+ {[%clk 0:00:04.4]} 69... Kh6
{[%clk 0:00:04.9]} 70. f7 {[%clk 0:00:04.2]} 70... Qf6+ {[%clk 0:00:05.4]} 71.
Ke2 {[%clk 0:00:04.6]} 71... Ng3+ {[%clk 0:00:05.5]} 72. Kd3 {[%clk 0:00:04.4]}
72... Nxe4 {[%clk 0:00:06.4]} 73. Kxe4 {[%clk 0:00:05.3]} 73... g5 {[%clk
0:00:07.1]} 74. Ke3 {[%clk 0:00:04]} 74... Qf4+ {[%clk 0:00:07.5]} 75. Kd3
{[%clk 0:00:04]} 75... g4 {[%clk 0:00:07.6]} 76. Bd5 {[%clk 0:00:04.9]} 76... g3
{[%clk 0:00:07.7]} 77. Kc3 {[%clk 0:00:05.5]} 77... Kg7 {[%clk 0:00:08.1]} 78.
Kb3 {[%clk 0:00:05.2]} 78... Qd4 {[%clk 0:00:08.2]} 0-1